bitfinex-derivatives/quotes_BTCF0:USTF0_20251108
["timestamp","ask_amount","ask_price","bid_price","bid_amount"]
[1762629681778,0.16411675,101780.0,101770.0,0.1854762]
[1762629682270,0.28257784,101780.0,101770.0,0.1854762]
[1762629682472,0.64337784,101780.0,101770.0,0.1854762]
[1762629682768,0.74166064,101780.0,101770.0,0.1854762]
[1762629683561,0.76578457,101780.0,101770.0,0.1854762]
[1762629685369,0.66750177,101780.0,101770.0,0.1854762]
[1762629685874,0.76578457,101780.0,101770.0,0.1854762]
[1762629687172,1.03090177,101780.0,101770.0,0.007]
[1762629687566,0.02258,101770.0,101760.0,0.08621294]
[1762629687766,0.60013349,101770.0,101760.0,0.08621294]
[1762629687968,0.02258,101760.0,101750.0,0.1764565]
[1762629688271,0.50184109,101760.0,101750.0,0.1764565]
[1762629688775,0.5265162,101760.0,101750.0,0.0983065]
[1762629688973,0.02258,101750.0,101740.0,0.1764676]
[1762629689272,0.5265162,101750.0,101740.0,0.1764676]
[1762629691377,0.5285162,101750.0,101740.0,0.1764676]
[1762629691578,0.5305162,101750.0,101740.0,0.1764676]
[1762629692581,0.41205511,101750.0,101740.0,0.1764676]
[1762629692776,0.5305162,101750.0,101740.0,0.1764676]
[1762629693278,0.1697162,101750.0,101740.0,0.1764676]
[1762629695567,0.1697162,101750.0,101740.0,0.29492869]
[1762629695776,0.1697162,101750.0,101740.0,0.1764676]
[1762629695970,0.02867511,101750.0,101740.0,0.77418978]
[1762629696473,0.02867511,101750.0,101740.0,1.01990978]
[1762629697068,0.02867511,101750.0,101740.0,0.77418978]
[1762629697474,0.02867511,101750.0,101740.0,1.01990978]
[1762629697677,0.02867511,101750.0,101740.0,0.77418978]
[1762629697877,0.02867511,101750.0,101740.0,1.76820978]
[1762629698084,1e-08,101750.0,101740.0,1.76820978]
[1762629698383,0.00014702,101770.0,101760.0,0.1741421]
[1762629698580,0.00014702,101770.0,101760.0,0.77186428]
[1762629699281,0.00022818,101770.0,101760.0,0.77186428]
[1762629699683,0.14142927,101770.0,101760.0,0.5349421]
[1762629699876,0.63569134,101770.0,101760.0,0.1741421]
[1762629700079,0.41893775,101770.0,101760.0,0.1741421]
[1762629700376,0.27789134,101770.0,101760.0,0.1741421]
[1762629700776,0.63869134,101770.0,101760.0,0.1741421]
[1762629701083,0.64269134,101770.0,101760.0,0.1741421]
[1762629701781,0.18359884,101770.0,101760.0,0.1741421]
[1762629701974,0.06513775,101770.0,101760.0,0.65340319]
[1762629702178,0.05376775,101770.0,101760.0,0.29260319]
[1762629702378,0.05376775,101770.0,101760.0,0.1741421]
[1762629702585,0.05376775,101770.0,101760.0,0.5349421]
[1762629702779,0.04239775,101770.0,101760.0,0.5349421]
[1762629703084,0.00722818,101770.0,101760.0,0.5349421]
[1762629703285,0.00722818,101770.0,101760.0,0.92883617]
[1762629703687,0.00722818,101770.0,101760.0,0.7806221]
[1762629704689,0.00722818,101770.0,101760.0,0.5349421]
[1762629704992,0.00722818,101770.0,101760.0,0.7806221]
[1762629705183,8e-08,101770.0,101760.0,0.7806221]
[1762629705380,8e-08,101770.0,101760.0,0.92883617]
[1762629705781,8e-08,101770.0,101760.0,0.5349421]
[1762629706186,9.112e-05,101770.0,101760.0,0.5349421]
[1762629706385,0.01146112,101770.0,101760.0,0.1741421]
[1762629706785,0.37226112,101770.0,101760.0,0.1741421]
[1762629707692,0.37226112,101770.0,101760.0,0.25436238]
[1762629708392,0.01146112,101770.0,101760.0,0.25436238]
[1762629708691,0.37226112,101770.0,101760.0,0.25436238]
[1762629710087,9.112e-05,101770.0,101760.0,0.61516238]
[1762629710789,0.01561112,101770.0,101760.0,0.61516238]
[1762629710993,9.112e-05,101770.0,101760.0,0.61516238]
[1762629711586,9.104e-05,101770.0,101760.0,0.61516238]
[1762629711797,0.00109104,101770.0,101760.0,0.61616238]
[1762629712397,0.00885104,101770.0,101760.0,0.25536238]
[1762629712689,0.37741104,101770.0,101760.0,0.1751421]
[1762629712894,0.62344764,101770.0,101760.0,0.1751421]
[1762629713291,0.87964404,101770.0,101760.0,0.001]
[1762629713696,1.47964404,101770.0,101760.0,0.001]
[1762629714488,0.1138221,101760.0,101750.0,0.09845882]
[1762629714692,1.09385849,101760.0,101750.0,0.09845882]
[1762629714890,1.2416644,101760.0,101750.0,0.09845882]
[1762629715109,0.993228,101760.0,101750.0,0.14312882]
[1762629715406,0.993228,101760.0,101750.0,0.17156882]
[1762629716312,0.993228,101760.0,101750.0,0.17256882]
[1762629718011,0.994228,101760.0,101750.0,0.17456882]
[1762629719114,0.996228,101760.0,101750.0,0.17256882]
[1762629719318,0.996228,101760.0,101750.0,0.17356882]
[1762629719911,1.2446644,101760.0,101750.0,0.002]
[1762629720513,1.2476644,101760.0,101750.0,0.002]
[1762629721600,1.2476644,101760.0,101750.0,0.04177]
[1762629722003,1.32496417,101760.0,101750.0,0.04177]
[1762629722408,1.31384039,101760.0,101750.0,0.002]
[1762629725318,1.34896689,101760.0,101750.0,0.002]
[1762629725508,1.31384039,101760.0,101750.0,0.002]
[1762629726218,1.29626733,101760.0,101750.0,0.002]
[1762629728415,1.30759823,101760.0,101750.0,0.002]
[1762629730718,1.05895471,101760.0,101750.0,0.1003118]
[1762629730918,1.30759823,101760.0,101750.0,0.002]
[1762629731419,1.36029301,101760.0,101750.0,0.002]
[1762629732417,1.30759823,101760.0,101750.0,0.002]
[1762629733120,1.36029301,101760.0,101750.0,0.002]
[1762629734121,1.05895471,101760.0,101750.0,0.1656718]
[1762629737113,1.11164949,101760.0,101750.0,0.1656718]
[1762629737622,0.96065261,101760.0,101750.0,0.1656718]
[1762629737820,0.03060499,101760.0,101750.0,0.1656718]
[1762629738514,0.13132709,101760.0,101750.0,0.1656718]
[1762629738710,0.49454709,101760.0,101750.0,0.1656718]
[1762629738914,0.39624499,101760.0,101750.0,0.1656718]
[1762629739516,0.49454709,101760.0,101750.0,0.1656718]
[1762629739716,0.39624499,101760.0,101750.0,0.1656718]
[1762629740028,0.49454709,101760.0,101750.0,0.1656718]
[1762629740520,0.39624499,101760.0,101750.0,0.1656718]
[1762629740733,0.39140499,101760.0,101750.0,0.1656718]
[1762629740920,0.03302499,101760.0,101750.0,0.1656718]
[1762629741218,0.39382499,101760.0,101750.0,0.1656718]
[1762629741425,0.49454719,101760.0,101750.0,0.1656718]
[1762629741817,0.39624499,101760.0,101750.0,0.1656718]
[1762629742523,0.02760499,101760.0,101750.0,0.5254718]
[1762629742724,0.02860499,101760.0,101750.0,0.5254718]
[1762629743417,0.03344499,101760.0,101750.0,0.5254718]
[1762629743619,0.03144499,101760.0,101750.0,0.5244718]
[1762629743922,0.02902499,101760.0,101750.0,0.5244718]
[1762629745721,0.02660499,101760.0,101750.0,0.5244718]
[1762629747428,0.48570709,101760.0,101750.0,0.1636718]
[1762629747629,0.38740499,101760.0,101750.0,0.1636718]
[1762629748529,0.48570709,101760.0,101750.0,0.1636718]
[1762629750427,0.87075436,101760.0,101750.0,0.1636718]
[1762629750628,0.90587608,101760.0,101750.0,0.1636718]
[1762629750932,0.90587608,101760.0,101750.0,0.06536]
[1762629753030,0.90587608,101760.0,101750.0,0.03977]
[1762629753331,0.10831179,101750.0,101740.0,0.1614537]
[1762629753532,0.64746046,101750.0,101740.0,0.1614537]
[1762629753728,0.79564722,101750.0,101740.0,0.03977]
[1762629754430,0.79564722,101750.0,101740.0,0.1614614]
[1762629754632,0.79564722,101750.0,101740.0,0.1390914]
[1762629754828,0.79664722,101750.0,101740.0,0.1644614]
[1762629755231,0.79664722,101750.0,101740.0,0.06614]
[1762629755935,0.79664722,101750.0,101740.0,0.1644614]
[1762629757233,0.0983215,101740.0,101730.0,9.724e-05]
[1762629757426,0.78418192,101740.0,101730.0,9.724e-05]
[1762629757738,0.8365176,101740.0,101730.0,9.724e-05]
[1762629759239,0.8375176,101740.0,101730.0,9.724e-05]
[1762629759424,0.8385176,101740.0,101730.0,0.00109724]
[1762629760032,0.848485,101740.0,101730.0,0.09942834]
[1762629760238,0.8385176,101740.0,101730.0,0.09942834]
[1762629761038,0.78582282,101740.0,101730.0,0.09942834]
[1762629763338,0.0983457,101720.0,101710.0,0.0983495]
[1762629763538,0.0983505,101710.0,101700.0,0.1602235]
[1762629763740,0.60188853,101710.0,101700.0,0.1602235]
[1762629764038,0.75863629,101710.0,101700.0,0.1602235]
[1762629764238,0.75874134,101710.0,101700.0,0.1602235]
[1762629764434,0.8889395,101710.0,101700.0,0.1602302]
[1762629764630,0.8869395,101710.0,101700.0,0.1602302]
[1762629765133,0.8869395,101710.0,101700.0,0.06187]
[1762629765338,0.8869395,101710.0,101700.0,0.1602302]
[1762629765932,0.8879395,101710.0,101700.0,0.06587]
[1762629766137,0.8889395,101710.0,101700.0,0.06342]
[1762629766340,0.78858004,101710.0,101700.0,0.06342]
[1762629766536,0.78858004,101710.0,101700.0,0.1617801]
[1762629766839,0.78858004,101710.0,101700.0,0.06342]
[1762629768036,0.78858004,101710.0,101700.0,0.03728]
[1762629769041,0.78858004,101710.0,101700.0,0.1587801]
[1762629769738,0.78858004,101710.0,101700.0,0.06042]
[1762629769935,0.78858004,101710.0,101700.0,0.1587801]
[1762629770338,0.78858004,101710.0,101700.0,0.001]
[1762629770838,0.78858004,101710.0,101700.0,0.1587001]
[1762629772142,0.78858004,101710.0,101700.0,0.06034]
[1762629772346,0.78858004,101710.0,101700.0,0.1587001]
[1762629773239,0.78858004,101710.0,101700.0,0.06034]
[1762629774336,0.64011938,101710.0,101700.0,0.0372]
[1762629774545,0.78858004,101710.0,101700.0,0.06034]
[1762629775241,0.00999999,101690.0,101680.0,0.05911]
[1762629775442,0.0983795,101680.0,101670.0,0.03549]
[1762629775643,0.78021689,101680.0,101670.0,0.03549]
[1762629775844,0.92849584,101680.0,101670.0,0.05832]
[1762629776036,0.78003518,101680.0,101670.0,0.1567092]
[1762629776242,0.10838919,101670.0,101660.0,0.03504145]
[1762629776440,0.64186013,101670.0,101660.0,0.05787145]
[1762629776745,0.78725743,101670.0,101660.0,0.05787145]
[1762629777550,0.78925743,101670.0,101660.0,0.05887145]
[1762629778346,0.69286823,101670.0,101660.0,0.15727025]
[1762629778545,0.68286824,101670.0,101660.0,0.15727025]
[1762629778747,0.69586823,101670.0,101660.0,0.15727025]
[1762629779249,0.79425733,101670.0,101660.0,0.05887145]
[1762629780340,0.79425733,101670.0,101660.0,0.15727025]
[1762629780545,0.79425733,101670.0,101660.0,0.05887145]
[1762629781149,0.79425733,101670.0,101660.0,0.03604145]
[1762629781650,0.79425733,101670.0,101660.0,0.05887145]
[1762629781949,0.79425733,101670.0,101660.0,0.01414145]
[1762629782150,0.82930528,101670.0,101660.0,0.05887145]
[1762629782340,0.79425733,101670.0,101660.0,0.01414145]
[1762629782540,0.79425733,101670.0,101660.0,0.03604145]
[1762629782751,0.79425733,101670.0,101660.0,0.00112145]
[1762629783344,0.82930528,101670.0,101660.0,0.00112145]
[1762629783853,0.82930528,101670.0,101660.0,0.05798145]
[1762629784048,0.82930528,101670.0,101660.0,0.01488145]
[1762629784248,0.82930528,101670.0,101660.0,0.00112145]
[1762629784551,0.88187721,101670.0,101660.0,0.00112145]
[1762629786251,0.84682926,101670.0,101660.0,0.00112145]
[1762629787050,0.6983686,101670.0,101660.0,0.00112145]
[1762629787251,0.84482926,101670.0,101660.0,0.00012145]
[1762629787444,0.84882926,101670.0,101630.0,0.01302]
[1762629787646,0.84882926,101670.0,101630.0,0.02293]
[1762629787647,0.75613952,101640.0,101630.0,0.02293]
[1762629787849,0.45434107,101640.0,101630.0,0.05789]
[1762629788048,0.47231404,101640.0,101630.0,0.05789]
[1762629788352,1.40229267,101640.0,101630.0,0.05789]
[1762629788554,1.40239508,101640.0,101630.0,0.03669]
[1762629789137,1.40239508,101640.0,101620.0,0.1213639]
[1762629789353,0.37079999,101630.0,101620.0,0.1563239]
[1762629789552,0.51386249,101630.0,101620.0,0.1563239]
[1762629789739,0.74285241,101630.0,101620.0,0.1563239]
[1762629789942,0.74285241,101630.0,101620.0,0.05789]
[1762629790445,0.83523013,101630.0,101620.0,0.05789]
[1762629790655,0.83623013,101630.0,101620.0,0.1563275]
[1762629790950,0.80234465,101630.0,101620.0,0.05789]
[1762629791152,0.55520472,101630.0,101620.0,0.1563275]
[1762629791547,0.03773176,101630.0,101620.0,0.1563275]
[1762629791850,0.00273176,101630.0,101620.0,1.26583963]
[1762629792051,0.0101024,101640.0,101630.0,0.1563179]
[1762629792452,0.02631818,101640.0,101630.0,0.1563179]
[1762629792653,0.01631819,101640.0,101630.0,0.1563179]
[1762629792849,0.01631819,101640.0,101630.0,0.7563179]
[1762629793253,0.01731819,101640.0,101630.0,0.7563179]
[1762629793454,0.01831819,101640.0,101630.0,0.7563179]
[1762629793645,0.02831818,101640.0,101630.0,0.7563179]
[1762629793845,0.01831819,101640.0,101630.0,0.7563179]
[1762629794155,0.02831818,101640.0,101630.0,0.7563179]
[1762629795346,0.01831819,101640.0,101630.0,0.7563179]
[1762629795549,0.02831818,101640.0,101630.0,0.7563179]
[1762629796748,0.05119818,101640.0,101630.0,0.7563179]
[1762629797054,0.07379818,101640.0,101630.0,0.7563179]
[1762629797455,0.43459818,101640.0,101630.0,0.7563179]
[1762629797652,0.52301639,101640.0,101630.0,0.7563179]
[1762629797852,0.68172851,101640.0,101630.0,0.1563179]
[1762629798357,0.68172851,101640.0,101630.0,0.05789]
[1762629799055,0.1511579,101630.0,101620.0,0.05789]
[1762629799350,0.84663283,101630.0,101620.0,0.1425676]
[1762629799953,0.89920476,101630.0,101620.0,0.1563276]
[1762629800154,0.84763283,101630.0,101620.0,0.1563276]
[1762629800351,0.89295476,101630.0,101620.0,0.05789]
[1762629800652,0.1439176,101620.0,101610.0,0.1563295]
[1762629800954,0.68739247,101620.0,101610.0,0.1563295]
[1762629801147,0.58895487,101620.0,101610.0,0.1563295]
[1762629801348,0.68739247,101620.0,101610.0,0.1563295]
[1762629802045,0.44024274,101620.0,101610.0,0.1563295]
[1762629802343,0.68739247,101620.0,101610.0,0.1213695]
[1762629802547,0.68739247,101620.0,101610.0,0.1563373]
[1762629802548,0.72327795,101620.0,101610.0,0.1563373]
[1762629802856,0.68939247,101620.0,101610.0,0.1563373]
[1762629803354,0.72427795,101620.0,101610.0,0.1563373]
[1762629803856,0.4661924,101620.0,101610.0,0.1563373]
[1762629804057,0.61490453,101620.0,101610.0,0.1563373]
[1762629804358,0.74822761,101620.0,101610.0,0.1563373]
[1762629804948,0.59951548,101620.0,101610.0,0.1563373]
[1762629805148,0.74822761,101620.0,101610.0,0.1563373]
[1762629806162,0.74822761,101620.0,101610.0,0.05789]
[1762629806456,0.59951548,101620.0,101610.0,0.1563373]
[1762629806657,0.74822761,101620.0,101610.0,0.1563373]
[1762629806857,0.50107788,101620.0,101610.0,0.1563373]
[1762629807153,0.74822751,101620.0,101610.0,0.1561673]
[1762629809152,0.80079944,101620.0,101610.0,0.1561673]
[1762629809452,0.70236194,101620.0,101610.0,0.1561673]
[1762629809652,0.80079944,101620.0,101610.0,0.1561673]
[1762629810052,0.70236194,101620.0,101610.0,0.1561673]
[1762629810255,0.80079944,101620.0,101610.0,0.1561673]
[1762629810760,0.70236194,101620.0,101610.0,0.1561673]
[1762629810961,0.55364981,101620.0,101610.0,0.1561673]
[1762629811263,0.70236194,101620.0,101610.0,0.1561673]
[1762629812162,0.79079945,101620.0,101610.0,0.1561673]
[1762629812362,0.76591396,101620.0,101610.0,0.1561673]
[1762629814166,0.80093306,101620.0,101610.0,0.1561673]
[1762629814365,0.85512817,101620.0,101610.0,0.1561673]
[1762629815163,0.75669067,101620.0,101610.0,0.1561673]
[1762629816064,0.0849463,101620.0,101610.0,0.27513047]
[1762629816373,0.02594966,101620.0,101610.0,0.88197047]
[1762629816563,0.03518091,101630.0,101610.0,0.88197047]
[1762629816767,0.03518091,101630.0,101620.0,0.75583384]
[1762629816966,0.05914289,101630.0,101620.0,0.75583384]
[1762629817158,0.0351363,101640.0,101630.0,0.1570979]
[1762629817358,0.00010241,101640.0,101630.0,0.88282107]
[1762629817573,0.08760582,101650.0,101630.0,0.88282107]
[1762629817574,0.03503389,101650.0,101640.0,0.1570882]
[1762629817865,0.04503388,101650.0,101640.0,0.27605137]
[1762629818066,0.03503389,101650.0,101640.0,0.27605137]
[1762629818468,0.03503389,101650.0,101640.0,0.1570882]
[1762629818664,0.04515273,101650.0,101640.0,0.1570882]
[1762629818967,0.04815273,101650.0,101640.0,0.5178882]
[1762629819570,0.03815274,101650.0,101640.0,0.5178882]
[1762629819761,0.03815274,101650.0,101640.0,0.7638482]
[1762629819962,0.04115274,101650.0,101640.0,0.7638482]
[1762629820361,0.00611885,101650.0,101640.0,0.7638482]
[1762629821065,0.00611885,101650.0,101640.0,0.5178882]
[1762629821374,0.00611885,101650.0,101640.0,0.7638482]
[1762629821766,0.06001884,101650.0,101640.0,0.4030482]
[1762629821965,0.06001884,101650.0,101640.0,0.1570882]
[1762629822165,0.42081884,101650.0,101640.0,0.1570882]
[1762629823474,0.41081885,101650.0,101640.0,0.1570882]
[1762629823675,0.42081884,101650.0,101640.0,0.1570882]
[1762629823971,0.51922734,101650.0,101640.0,0.1565682]
[1762629824170,0.84982557,101650.0,101640.0,0.1565682]
[1762629824366,0.84982557,101650.0,101640.0,0.05815]
[1762629824565,0.9096475,101650.0,101640.0,0.02232]
[1762629824766,0.1445382,101640.0,101630.0,0.15651882]
[1762629824976,0.65389561,101640.0,101630.0,0.15651882]
[1762629825872,0.95646286,101640.0,101630.0,0.00014702]
[1762629826068,0.95646286,101640.0,101630.0,0.12069492]
[1762629826069,0.84493934,101640.0,101630.0,0.12069492]
[1762629826278,0.84493934,101640.0,101630.0,0.04450702]
[1762629826470,0.84493934,101640.0,101630.0,0.00014702]
[1762629826971,0.84693934,101640.0,101630.0,0.00014702]
[1762629827165,0.89951127,101640.0,101630.0,0.00014702]
[1762629827568,0.89951127,101640.0,101630.0,0.09857492]
[1762629827770,0.89951127,101640.0,101630.0,0.00014702]
[1762629828479,1.00014965,101640.0,101630.0,0.09857492]
[1762629828780,1.02411426,101640.0,101630.0,0.00014702]
[1762629829280,0.97154233,101640.0,101630.0,0.00014702]
[1762629829886,1.02411426,101640.0,101630.0,0.00014702]
[1762629830379,0.98908037,101640.0,101630.0,0.00014702]
[1762629831282,1.02405529,101640.0,101630.0,0.00014702]
[1762629831880,0.98908037,101640.0,101630.0,0.00014702]
[1762629834276,1.02405603,101640.0,101630.0,0.00014702]
[1762629836080,0.9714841,101640.0,101630.0,0.00014702]
[1762629836973,1.36573603,101640.0,101630.0,0.00014702]
[1762629837173,1.33076037,101640.0,101630.0,0.00014702]
[1762629838271,0.15090719,101610.0,101600.0,0.1557698]
[1762629838477,0.78498477,101610.0,101600.0,0.1557698]
[1762629838682,0.80385694,101610.0,101600.0,0.1557698]
[1762629839677,0.80385694,101610.0,101600.0,0.0984498]
[1762629839883,0.90811913,101610.0,101600.0,0.0984569]
[1762629840070,0.95157913,101610.0,101600.0,0.0984569]
[1762629840274,0.90911913,101610.0,101600.0,0.0984569]
[1762629840480,0.95257913,101610.0,101600.0,0.0984569]
[1762629840783,0.1409169,101600.0,101590.0,0.1546601]
[1762629840984,0.42722461,101600.0,101590.0,0.1546601]
[1762629841176,0.83267121,101600.0,101590.0,0.1546601]
[1762629841573,0.58347542,101600.0,101590.0,0.1546601]
[1762629841780,0.83267121,101600.0,101590.0,0.1546601]
[1762629842184,0.83367121,101600.0,101590.0,0.1546601]
[1762629843579,0.83467121,101600.0,101590.0,0.1546601]
[1762629843980,0.93312811,101600.0,101590.0,0.1546601]
[1762629844885,0.83467121,101600.0,101590.0,0.1546601]
[1762629845889,0.93312811,101600.0,101590.0,0.1546601]
[1762629846088,0.83467121,101600.0,101590.0,0.1546601]
[1762629846401,0.93312811,101600.0,101590.0,0.1546601]
[1762629846574,0.93956811,101600.0,101590.0,0.1546601]
[1762629847178,0.68393232,101600.0,101590.0,0.1546601]
[1762629847379,0.93312811,101600.0,101590.0,0.1546601]
[1762629847782,0.93956811,101600.0,101590.0,0.1546601]
[1762629847989,0.05021,101590.0,101580.0,8.749e-05]
[1762629848181,1.14383019,101590.0,101580.0,8.749e-05]
[1762629848384,1.3114987,101590.0,101580.0,0.09856379]
[1762629848577,1.30153907,101590.0,101580.0,0.09856379]
[1762629849286,1.30197907,101590.0,101580.0,8.749e-05]
[1762629849792,1.30197907,101590.0,101580.0,0.09856379]
[1762629850085,1.30397907,101590.0,101580.0,0.09856379]
[1762629850293,1.30397907,101590.0,101580.0,8.749e-05]
[1762629850495,1.30397907,101590.0,101580.0,0.09856379]
[1762629851082,1.30397907,101590.0,101580.0,8.749e-05]
[1762629853082,1.30389907,101590.0,101580.0,8.749e-05]
[1762629853478,1.33886651,101590.0,101580.0,8.749e-05]
[1762629854392,1.33886651,101590.0,101580.0,0.09856379]
[1762629855489,0.99698651,101590.0,101580.0,0.09856379]
[1762629855691,1.33878651,101590.0,101580.0,0.09856379]
[1762629856294,1.33878651,101590.0,101580.0,8.749e-05]
[1762629856986,1.08959072,101590.0,101580.0,8.749e-05]
[1762629857180,0.04339,101560.0,101550.0,0.1581778]
[1762629857590,0.58230263,101560.0,101550.0,0.1581778]
[1762629858193,0.5823939,101560.0,101550.0,0.1581778]
[1762629859099,0.85603496,101560.0,101550.0,0.1581778]
[1762629859298,0.60783917,101560.0,101550.0,0.1581778]
[1762629860000,0.01014701,101570.0,101560.0,0.1581757]
[1762629860300,0.18504116,101600.0,101590.0,0.1581466]
[1762629860301,0.44559744,101600.0,101590.0,0.1581466]
[1762629860596,0.73483595,101600.0,101590.0,0.1581466]
[1762629861001,0.6094739,101600.0,101590.0,0.1581466]
[1762629861186,0.36767889,101600.0,101590.0,0.1581466]
[1762629861496,0.0669241,101600.0,101590.0,0.5189466]
[1762629861690,0.18592909,101600.0,101590.0,0.5189466]
[1762629861892,0.19592908,101600.0,101590.0,0.5189466]
[1762629862089,0.19592908,101600.0,101590.0,0.1581466]
[1762629862399,0.0669241,101600.0,101590.0,0.5189466]
[1762629862597,0.0699241,101600.0,101590.0,0.5189466]
[1762629862986,0.08292409,101600.0,101590.0,0.5189466]
[1762629863198,0.0729241,101600.0,101590.0,0.5189466]
[1762629863606,0.171381,101600.0,101590.0,0.1581466]
[1762629863795,0.18138099,101600.0,101590.0,0.1581466]
[1762629864096,0.04339,101590.0,101580.0,0.40697702]
[1762629864292,0.41462622,101590.0,101580.0,0.15830332]
[1762629864489,0.56242102,101590.0,101580.0,0.15830332]
[1762629864704,0.46395442,101590.0,101580.0,0.15830332]
[1762629864902,0.82475442,101590.0,101580.0,0.15830332]
[1762629865202,0.83475441,101590.0,101580.0,0.15830332]
[1762629865403,0.97018845,101590.0,101580.0,0.15830332]
[1762629865798,0.97021563,101590.0,101580.0,0.15830332]
[1762629865989,0.97121563,101590.0,101580.0,0.15830332]
[1762629867505,1.02378756,101590.0,101580.0,0.05982702]
[1762629867899,1.02378756,101590.0,101580.0,0.04617702]
[1762629868099,1.02378756,101590.0,101580.0,0.02316702]
[1762629868804,1.02378756,101590.0,101580.0,0.12164332]
[1762629869905,1.02378756,101590.0,101580.0,0.02316702]
[1762629870604,1.02378756,101590.0,101580.0,0.12164332]
[1762629870805,1.02378756,101590.0,101580.0,0.02316702]
[1762629871110,1.02378756,101590.0,101580.0,0.12164332]
[1762629871406,1.02378756,101590.0,101580.0,0.14407332]
[1762629871610,0.92532096,101590.0,101580.0,0.15758332]
[1762629871916,1.02378756,101590.0,101580.0,0.15758332]
[1762629873208,0.98882012,101590.0,101580.0,0.15758332]
[1762629875001,0.98882012,101590.0,101580.0,0.14407332]
[1762629875509,0.98882012,101590.0,101580.0,0.00014702]
[1762629875708,0.98882012,101590.0,101580.0,0.09862332]
[1762629876005,0.98882012,101590.0,101580.0,0.00014702]
[1762629876207,0.98882012,101590.0,101580.0,0.09862332]
[1762629876709,0.98882012,101590.0,101580.0,0.00014702]
[1762629876911,0.89035352,101590.0,101580.0,0.15834332]
[1762629877109,0.06147167,101590.0,101580.0,0.51914332]
[1762629877405,0.02647834,101590.0,101580.0,0.51914332]
[1762629879407,0.02647834,101590.0,101580.0,1.36522332]
[1762629879608,0.03507627,101600.0,101590.0,0.1581867]
[1762629879812,8.294e-05,101600.0,101590.0,0.5189867]
[1762629880108,8.294e-05,101600.0,101590.0,0.7650667]
[1762629880315,8.294e-05,101600.0,101590.0,0.5189867]
[1762629880512,8.294e-05,101600.0,101590.0,0.7650667]
[1762629880812,8.294e-05,101600.0,101590.0,0.5189867]
[1762629880813,0.00308294,101600.0,101590.0,0.5189867]
[1762629881014,0.00308294,101600.0,101590.0,0.7650667]
[1762629881313,0.00308294,101600.0,101590.0,0.5189867]
[1762629881515,0.00308294,101600.0,101590.0,0.7650667]
[1762629882219,0.00608294,101600.0,101590.0,0.5189867]
[1762629882414,0.00608294,101600.0,101590.0,0.7650667]
[1762629883317,0.00608294,101600.0,101590.0,0.5189867]
[1762629883510,0.00608294,101600.0,101590.0,0.7650667]
[1762629885117,0.00608294,101600.0,101590.0,0.5189867]
[1762629885416,0.00608294,101600.0,101590.0,0.7650667]
[1762629886208,0.00608294,101600.0,101590.0,0.5189867]
[1762629886511,0.00608294,101600.0,101590.0,0.7650667]
[1762629886717,0.00608294,101600.0,101590.0,0.5189867]
[1762629891121,0.00608294,101600.0,101590.0,0.7650667]
[1762629891324,0.00608294,101600.0,101590.0,0.5189867]
[1762629891517,0.00608294,101600.0,101590.0,0.7650667]
[1762629892322,0.00608294,101600.0,101590.0,0.5189867]
[1762629892924,0.00608294,101600.0,101590.0,0.7650667]
[1762629893521,0.00608294,101600.0,101590.0,0.5189867]
[1762629895424,0.02757294,101600.0,101590.0,0.5189867]
[1762629895624,0.19858105,101600.0,101590.0,0.5189867]
[1762629896726,0.46829025,101600.0,101590.0,0.1581867]
[1762629897727,0.98565836,101600.0,101590.0,0.1446767]
[1762629897924,0.98565836,101600.0,101590.0,0.02378]
[1762629898932,0.83694025,101600.0,101590.0,0.02378]
[1762629899125,0.83694025,101600.0,101590.0,0.04484]
[1762629899626,0.83694025,101600.0,101590.0,0.1433066]
[1762629900123,0.83694025,101600.0,101580.0,0.47293142]
[1762629900330,0.3053747,101590.0,101580.0,0.14123142]
[1762629900522,0.36358324,101590.0,101580.0,0.14123142]
[1762629900723,0.87193617,101590.0,101580.0,0.14123142]
[1762629901531,0.87193617,101590.0,101580.0,0.14223142]
[1762629902234,0.87193617,101590.0,101580.0,0.04375702]
[1762629902736,0.87293617,101590.0,101580.0,0.14223332]
[1762629903034,0.87293617,101590.0,101580.0,0.14323332]
[1762629903337,0.87293617,101590.0,101580.0,0.04375702]
[1762629903630,0.87393617,101590.0,101580.0,0.00214702]
[1762629905126,0.9265081,101590.0,101580.0,0.00214702]
[1762629905636,0.9265081,101590.0,101580.0,0.10062342]
[1762629905934,0.87393617,101590.0,101580.0,0.00214702]
[1762629906441,0.9265081,101590.0,101580.0,0.00214702]
[1762629906636,0.9265081,101590.0,101580.0,0.04475702]
[1762629906837,0.87393617,101590.0,101580.0,0.00214702]
[1762629907239,0.87393617,101590.0,101580.0,0.10062332]
[1762629907536,0.86911617,101590.0,101580.0,0.15611332]
[1762629907922,0.72039806,101590.0,101580.0,0.15611332]
[1762629908126,0.87393617,101590.0,101580.0,0.15611332]
[1762629908327,0.87393617,101590.0,101580.0,0.14323332]
[1762629908624,0.87393617,101590.0,101580.0,0.00214702]
[1762629908828,0.72521806,101590.0,101580.0,0.02369702]
[1762629909034,0.87393617,101590.0,101580.0,0.04475702]
[1762629909332,0.02521521,101590.0,101580.0,0.51691332]
[1762629909528,0.02521521,101590.0,101580.0,0.66563143]
[1762629909729,0.0352152,101590.0,101580.0,0.51691332]
[1762629910033,0.002,101590.0,101580.0,0.51691332]
[1762629910227,0.01199999,101590.0,101580.0,0.51691332]
[1762629910629,0.002,101590.0,101580.0,0.51691332]
[1762629911134,8.294e-05,101600.0,101590.0,0.1539566]
[1762629911333,0.02329784,101600.0,101590.0,0.5147566]
[1762629912228,0.03329783,101600.0,101590.0,0.5147566]
[1762629912433,0.02329784,101600.0,101590.0,0.5147566]
[1762629912839,8.294e-05,101600.0,101590.0,0.5147566]
[1762629913340,0.00208294,101600.0,101590.0,0.5157566]
[1762629913839,0.00108294,101600.0,101590.0,0.5167566]
[1762629914338,0.00408294,101600.0,101590.0,0.5177566]
[1762629914542,0.00014702,101610.0,101600.0,0.1539469]
[1762629914842,0.02336998,101610.0,101600.0,0.5147469]
[1762629915039,0.00014702,101610.0,101600.0,0.5147469]
[1762629915233,0.19208811,101630.0,101620.0,0.1539275]
[1762629915536,0.47079548,101630.0,101620.0,0.1539275]
[1762629916637,0.47767548,101630.0,101620.0,0.04261]
[1762629916844,0.84047548,101630.0,101620.0,0.1209875]
[1762629917041,0.33095737,101630.0,101620.0,0.1549275]
[1762629917244,0.83359548,101630.0,101620.0,0.1549275]
[1762629917543,0.37236768,101630.0,101620.0,0.1539275]
[1762629917846,0.37536768,101630.0,101620.0,0.1549275]
[1762629918438,0.20435957,101630.0,101620.0,0.1549275]
[1762629918636,0.20435957,101630.0,101620.0,0.5157275]
[1762629918637,0.03634704,101630.0,101620.0,0.5157275]
[1762629918838,0.02434705,101630.0,101620.0,0.5147275]
[1762629919346,0.00014702,101640.0,101630.0,0.1539178]
[1762629919547,0.00014702,101640.0,101630.0,0.5147178]
[1762629920234,0.00022907,101640.0,101630.0,0.5147178]
[1762629920440,0.00022907,101640.0,101630.0,0.5157178]
[1762629921136,0.00022907,101640.0,101630.0,0.1549178]
[1762629921137,0.06708906,101640.0,101630.0,0.1549178]